[Event "44th Open Sitges 2018"]
[Site "Sitges"]
[Date "2018.07.22"]
[Round "1"]
[White "Garcia Fernandez, Pere"]
[Black "Jimenez Ortiz, Gonzalo"]
[Result "0-1"]
[ECO "B34"]
[WhiteElo "1612"]
[BlackElo "1949"]
[Annotator "NA"]
[PlyCount "120"]
[EventDate "2018.07.22"]
[EventType "swiss"]
[EventCountry "ESP"]
[SourceTitle "playchess.com"]
[Source "ChessBase"]
[SourceQuality "1"]
[TimeControl "40/5400+30:1800+30"]

1. e4 {[%emt 0:03:18]} c5 {[%emt 0:00:26]} 2. Bc4 {[%emt 0:00:12]} Nc6 {[%emt 0:00:33]} 3. Nf3 {[%emt 0:00:35]} g6 {[%emt 0:03:11]} 4. d4 {[%emt 0:06:46]} cxd4 {[%emt 0:00:51]} 5. Nxd4 {[%emt 0:04:20]} Bg7 {[%emt 0:01:36]} 6. Nxc6 {[%emt 0:01:52]} bxc6 $11 {[%emt 0:01:23] LiveBook: 12 Games} 7. O-O {[%emt 0:04:40]} Qc7 {[%emt 0:16:43]} 8. c3 {[%emt 0:06:27]} Nf6 {[%emt 0:07:04]} 9. Qf3 {[%emt 0:03:36]} O-O {[%emt 0:03:51]} 10. Bg5 {[%emt 0:01:46]} Qe5 {[%emt 0:07:15]} 11. Bxf6 {[%emt 0:03:30]} Qxf6 {[%emt 0:04:19]} 12. Qxf6 {[%emt 0:05:10]} Bxf6 {[%emt 0:00:36]} 13. f4 {[%emt 0:00:10]} d6 {[%emt 0:05:56]} 14. Nd2 {[%emt 0:02:25]} Bg7 {[%emt 0:09:29]} 15. Rf3 {[%emt 0:05:21]} a5 {[%emt 0:03:14]} 16. Re1 {[%emt 0:07:19]} a4 {[%emt 0:03:46]} 17. Nb1 {[%emt 0:08:38]} Bg4 {[%emt 0:02:00]} 18. Rg3 {[%emt 0:00:30]} Bd7 {[%emt 0:00:23]} 19. Na3 {[%emt 0:06:07]} Rfb8 {[%emt 0:04:59]} 20. Re2 {[%emt 0:02:48]} Rb7 {[%emt 0:01:54]} 21. h4 {[%emt 0:06:23]} Rab8 {[%emt 0:03:26]} 22. b3 {[%emt 0:05:55]} axb3 {[%emt 0:06:01]} 23. Bxb3 {[%emt 0:01:07]} e6 {[%emt 0:03:10]} 24. Rd3 {[%emt 0:01:58]} d5 {[%emt 0:01:22]} 25. e5 {[%emt 0:00:43]} c5 {[%emt 0:01:18]} 26. c4 {[%emt 0:01:08]} d4 {[%emt 0:00:53]} 27. g4 {[%emt 0:03:54]} Bf8 {[%emt 0:01:37]} 28. g5 {[%emt 0:00:39]} Be7 {[%emt 0:00:40]} 29. Kf2 {[%emt 0:00:51]} Bd8 {[%emt 0:01:51]} 30. Nb1 {[%emt 0:02:41]} Ba5 {[%emt 0:00:24]} 31. Rb2 {[%emt 0:00:41]} Ba4 {[%emt 0:01:47]} 32. Ke2 {[%emt 0:00:52]} Kf8 {[%emt 0:00:49]} 33. Nd2 {[%emt 0:00:25]} Bxd2 {[%emt 0:00:56]} 34. Kxd2 {[%emt 0:00:10]} Ke7 {[%emt 0:01:23]} 35. Kc1 {[%emt 0:00:28]} Kd8 {[%emt 0:00:17]} 36. Kd2 {[%emt 0:00:37]} Kc7 {[%emt 0:00:13]} 37. Kc1 {[%emt 0:02:03]} Rb6 {[%emt 0:00:19]} 38. Kc2 {[%emt 0:00:38]} R8b7 {[%emt 0:00:22]} 39. Kc1 {[%emt 0:00:33]} Kb8 {[%emt 0:00:32]} 40. Kc2 {[%emt 0:00:35]} Ka7 {[%emt 0:01:05]} 41. Kc1 {[%emt 0:00:47]} Ka6 {[%emt 0:10:33]} 42. Kc2 {[%emt 0:01:24]} Ka5 {[%emt 0:00:11]} 43. Kc1 {[%emt 0:03:22]} Rb4 {[%emt 0:00:41]} 44. Kb1 {[%emt 0:01:48]} Bxb3 {[%emt 0:12:47]} 45. axb3 {[%emt 0:02:53]} Ra7 {[%emt 0:00:16]} 46. Ra2+ {[%emt 0:00:45]} Kb6 {[%emt 0:00:01]} 47. Rxa7 {[%emt 0:00:51]} Kxa7 {[%emt 0:00:01]} 48. Kb2 {[%emt 0:00:37]} Rb6 {[%emt 0:00:41]} 49. Rh3 {[%emt 0:03:13]} Ra6 {[%emt 0:01:28]} 50. h5 {[%emt 0:01:54]} Kb6 {[%emt 0:00:13]} 51. hxg6 {[%emt 0:00:41]} hxg6 {[%emt 0:00:04]} 52. Rh7 {[%emt 0:01:33]} Ra7 {[%emt 0:00:01]} 53. Rh3 {[%emt 0:00:12]} Ka5 {[%emt 0:00:25]} 54. Ka3 {[%emt 0:00:58]} Rd7 {[%emt 0:00:13]} 55. Rd3 {[%emt 0:00:20]} Rd8 {[%emt 0:00:15]} 56. Kb2 {[%emt 0:01:06]} Kb4 {[%emt 0:02:44]} 57. Kc2 {[%emt 0:10:49]} Rh8 {[%emt 0:00:24]} 58. Rd2 {[%emt 0:01:02]} Rh3 {[%emt 0:00:26]} 59. Rd3 {[%emt 0:00:27]} Rxd3 {[%emt 0:00:42]} 60. Kxd3 {[%emt 0:04:50]} Kxb3 {[%emt 0:01:12]} 0-1

[Event "44th Open Sitges 2018"]
[Site "Sitges"]
[Date "2018.07.22"]
[Round "2"]
[White "Jimenez Ortiz, Gonzalo"]
[Black "Gris Mateos, Francisco"]
[Result "1-0"]
[ECO "B05"]
[WhiteElo "1949"]
[BlackElo "1710"]
[Annotator "NA RC"]
[PlyCount "139"]
[EventDate "2018.07.22"]
[EventType "swiss"]
[EventCountry "ESP"]
[SourceTitle "playchess.com"]
[Source "ChessBase"]
[SourceQuality "1"]
[TimeControl "40/5400+30:1800+30"]

1. e4 {[%emt 0:03:35]} Nf6 {[%emt 0:00:15]} 2. e5 {[%emt 0:00:48]} Nd5 {[%emt 0:00:07]} 3. d4 {[%emt 0:00:14]} d6 {[%emt 0:00:08]} 4. Nf3 {[%emt 0:00:40]} Bg4 {[%emt 0:02:32]} 5. Be2 {[%emt 0:01:14]} e6 {[%emt 0:01:16]} 6. O-O {[%emt 0:00:34]} Be7 {[%emt 0:19:02]} 7. c4 {[%emt 0:09:43]} Nb6 {[%emt 0:00:00]} 8. exd6 cxd6 {[%emt 0:00:00]} 9. Nc3 {[%emt 0:00:14]} O-O {[%emt 0:04:22]} 10. b3 {[%emt 0:04:50]} Nc6 {[%emt 0:07:59]} 11. Bb2 {[%emt 0:01:36] B05: Alekhine's Defence: 4 Nf3 Bg4} d5 {[%emt 0:13:20]} 12. c5 {[%emt 0:11:29]} Nc8 {[%emt 0:00:24]} 13. a3 {[%emt 0:05:29] [#]} a6 $146 {[%emt 0:02:31]} ({Predecessor:} 13... b6 14. b4 Bf6 15. Ne5 Bxe2 16. Nxc6 Bxd1 17. Nxd8 Bb3 18. Nc6 Ne7 19. Nxe7+ Bxe7 20. c6 Bc4 21. Rfe1 a6 22. Na4 Bd8 {0-1 (22) Yanayt,E (2253)-Yermolinsky,A (2549) Los Angeles 2005}) 14. b4 {[%emt 0:04:36]} Bf6 {[%emt 0:07:05]} 15. Nb1 {[%emt 0:03:06]} b6 {[%emt 0:01:40]} 16. Nbd2 {[%emt 0:03:15]} b5 {[%emt 0:05:35]} 17. Re1 {[%emt 0:05:07]} Qc7 {[%emt 0:02:57]} 18. Nf1 {[%emt 0:02:39]} N8e7 {[%emt 0:08:36]} 19. Ng3 {[%emt 0:01:57]} Nf5 {[%emt 0:04:46]} 20. Nxf5 {[%emt 0:01:01]} Bxf5 {[%emt 0:01:45]} 21. h3 {[%emt 0:05:36]} g5 {[%emt 0:05:36]} 22. Qd2 {[%emt 0:10:49]} g4 {[%emt 0:04:51]} 23. hxg4 {[%emt 0:01:15]} Bxg4 {[%emt 0:00:37]} 24. Nh2 {[%emt 0:02:12]} Bf5 {[%emt 0:02:28]} 25. Ng4 {[%emt 0:01:38]} Bg7 {[%emt 0:02:05]} 26. Nh6+ {[%emt 0:03:50]} Bxh6 {[%emt 0:02:40]} 27. Qxh6 {[%emt 0:00:05]} f6 {[%emt 0:05:08]} 28. Bf3 {[%emt 0:02:33]} Qg7 {[%emt 0:01:48]} 29. Qxg7+ {[%emt 0:00:45]} Kxg7 {[%emt 0:01:06]} 30. g4 {[%emt 0:00:25]} Be4 {[%emt 0:02:33]} 31. Bxe4 {[%emt 0:00:58]} dxe4 {[%emt 0:00:26]} 32. Rxe4 {[%emt 0:00:32]} Kf7 {[%emt 0:00:17]} 33. Kg2 {[%emt 0:04:22]} Rg8 {[%emt 0:00:57]} 34. Kf3 {[%emt 0:00:32]} Rae8 {[%emt 0:01:34]} 35. Bc3 {[%emt 0:01:31]} Ne7 {[%emt 0:00:39]} 36. a4 {[%emt 0:01:29]} Nd5 {[%emt 0:00:14]} 37. Bd2 {[%emt 0:00:16]} f5 {[%emt 0:05:06]} 38. gxf5 {[%emt 0:00:12]} exf5 {[%emt 0:00:18]} 39. Rxe8 {[%emt 0:00:36]} Rxe8 {[%emt 0:00:11]} 40. axb5 {[%emt 0:01:49]} axb5 {[%emt 0:00:17]} 41. Ra5 {[%emt 0:11:01]} Re4 {[%emt 0:01:11]} 42. Be3 {[%emt 0:02:26]} Nxb4 {[%emt 0:03:58]} 43. Rxb5 {[%emt 0:00:52]} Nc6 {[%emt 0:04:11]} 44. Rb7+ {[%emt 0:02:28]} Kg8 {[%emt 0:00:16]} 45. Rd7 {[%emt 0:06:01]} h5 {[%emt 0:04:08]} 46. Rd6 {[%emt 0:02:13]} Ne7 {[%emt 0:04:37]} 47. c6 {[%emt 0:02:42]} Kf7 {[%emt 0:01:39]} 48. c7 {[%emt 0:02:12]} Nc8 {[%emt 0:01:44]} 49. Rd8 {[%emt 0:00:23]} Re8 {[%emt 0:00:28]} 50. Rxe8 {[%emt 0:01:46]} Kxe8 {[%emt 0:01:00]} 51. Bf4 {[%emt 0:01:04]} Kd7 {[%emt 0:01:01]} 52. d5 {[%emt 0:01:42]} Nb6 {[%emt 0:00:25]} 53. d6 {[%emt 0:00:16]} Nd5 {[%emt 0:03:22]} 54. Be5 {[%emt 0:00:25]} Nb6 {[%emt 0:00:25]} 55. Kg3 {[%emt 0:00:38]} Ke6 {[%emt 0:00:15]} 56. Kh4 {[%emt 0:00:37]} Kd7 {[%emt 0:01:08]} 57. Kxh5 {[%emt 0:00:14]} Nc4 {[%emt 0:00:30]} 58. Bf4 {[%emt 0:00:14]} Nb6 {[%emt 0:00:48]} 59. Kg5 {[%emt 0:00:30]} Ke6 {[%emt 0:00:04]} 60. Kh4 {[%emt 0:00:59]} Kd7 {[%emt 0:00:33]} 61. Kg3 {[%emt 0:00:10]} Nd5 {[%emt 0:00:38]} 62. Kf3 {[%emt 0:00:31]} Nb6 {[%emt 0:02:16]} 63. Ke2 {[%emt 0:00:17]} Nd5 {[%emt 0:00:22]} 64. Be5 {[%emt 0:00:22]} Nb6 {[%emt 0:00:20]} 65. Kd3 {[%emt 0:00:19]} Kc6 {[%emt 0:01:19]} 66. Kd4 {[%emt 0:00:43]} Nc8 {[%emt 0:00:08]} 67. Bf4 {[%emt 0:00:47]} Kd7 {[%emt 0:00:33]} 68. Kc5 {[%emt 0:00:54]} Na7 $18 {[%emt 0:01:34]} 69. Kb6 {[%emt 0:00:38]} Nc8+ {[%emt 0:00:02]} 70. Kb7 {[%emt 0:00:23]} 1-0

[Event "44th Open Sitges 2018"]
[Site "Sitges"]
[Date "2018.07.23"]
[Round "3"]
[White "Beltran Rueda, Santiago"]
[Black "Kadam, Om Manish"]
[Result "1/2-1/2"]
[ECO "E05"]
[WhiteElo "2362"]
[BlackElo "1836"]
[Annotator "NA"]
[PlyCount "55"]
[EventDate "2018.07.22"]
[EventType "swiss"]
[EventCountry "ESP"]
[SourceTitle "playchess.com"]
[Source "ChessBase"]
[SourceQuality "1"]
[TimeControl "40/5400+30:1800+30"]

1. c4 {[%emt 0:00:01]} e6 {[%emt 0:01:18]} 2. Nf3 {[%emt 0:00:11]} Nf6 {[%emt 0:00:22]} 3. g3 {[%emt 0:00:14]} d5 {[%emt 0:00:05]} 4. d4 {[%emt 0:00:07]} Be7 {[%emt 0:00:06]} 5. Bg2 {[%emt 0:00:06]} O-O {[%emt 0:00:07]} 6. O-O {[%emt 0:00:06]} dxc4 {[%emt 0:00:11]} 7. Ne5 {[%emt 0:00:11]} Nc6 {[%emt 0:00:11]} 8. Bxc6 {[%emt 0:00:10]} bxc6 {[%emt 0:00:06]} 9. Nxc6 {[%emt 0:00:05]} Qe8 {[%emt 0:00:05]} 10. Nxe7+ {[%emt 0:00:05]} Qxe7 {[%emt 0:00:05]} 11. Qa4 {[%emt 0:00:05]} c5 {[%emt 0:06:28]} 12. Qxc4 {[%emt 0:00:38]} cxd4 {[%emt 0:00:08]} 13. Qxd4 {[%emt 0:00:05]} e5 {[%emt 0:03:02]} 14. Qh4 {[%emt 0:01:28]} Rb8 {[%emt 0:06:48]} 15. Nc3 {[%emt 0:08:25]} Rb4 {[%emt 0:01:31]} 16. e4 {[%emt 0:00:23]} Ba6 {[%emt 0:00:10]} 17. Bg5 {[%emt 0:04:33]} Qe6 {[%emt 0:07:57]} 18. Bxf6 {[%emt 0:00:46]} Qxf6 {[%emt 0:00:07]} 19. Qxf6 {[%emt 0:00:14]} gxf6 {[%emt 0:00:06]} 20. Rfd1 {[%emt 0:03:02]} Rxb2 {[%emt 0:14:23]} 21. Rd6 {[%emt 0:02:25]} Bc4 {[%emt 0:01:01]} 22. Rxf6 {[%emt 0:03:01]} Rd8 {[%emt 0:00:54]} 23. a4 {[%emt 0:08:58]} Be6 {[%emt 0:04:50]} 24. Nd5 {[%emt 0:10:42]} Kg7 {[%emt 0:09:39]} 25. Rf3 {[%emt 0:00:23]} Bxd5 {[%emt 0:00:05]} 26. exd5 {[%emt 0:00:07]} Rxd5 {[%emt 0:00:06]} 27. Rc1 {[%emt 0:09:20]} Rb7 {[%emt 0:01:14]} 28. Ra1 {[%emt 0:08:02]} 1/2-1/2

[Event "44th Open Sitges 2018"]
[Site "Sitges"]
[Date "2018.07.23"]
[Round "3"]
[White "Anadkat, Kartavya"]
[Black "Gonzales, Jayson"]
[Result "1/2-1/2"]
[ECO "B12"]
[WhiteElo "1910"]
[BlackElo "2367"]
[Annotator "ChessBase"]
[PlyCount "98"]
[EventDate "2018.07.22"]
[EventType "swiss"]
[EventCountry "ESP"]
[SourceTitle "playchess.com"]
[Source "ChessBase"]
[SourceQuality "1"]
[TimeControl "40/5400+30:1800+30"]

1. e4 {[%emt 0:00:01]} c6 {[%emt 0:06:12]} 2. d4 {[%emt 0:00:08]} d5 {[%emt 0:00:12]} 3. e5 {[%emt 0:00:02]} c5 {[%emt 0:00:15]} 4. dxc5 {[%emt 0:00:14]} e6 {[%emt 0:00:08]} 5. a3 {[%emt 0:00:04]} Bxc5 {[%emt 0:00:08]} 6. b4 {[%emt 0:00:03]} Bb6 {[%emt 0:00:21]} 7. Nf3 {[%emt 0:00:20]} Nc6 {[%emt 0:00:26]} 8. Bb2 {[%emt 0:00:44]} Nge7 {[%emt 0:02:41]} 9. Bd3 {[%emt 0:00:07]} Ng6 {[%emt 0:00:10]} 10. O-O {[%emt 0:00:12]} O-O {[%emt 0:00:10]} 11. c4 {[%emt 0:07:26]} dxc4 {[%emt 0:00:14]} 12. Bxc4 {[%emt 0:00:13]} Qxd1 {[%emt 0:00:11]} 13. Rxd1 {[%emt 0:00:09]} Bc7 {[%emt 0:00:02]} 14. Re1 {[%emt 0:03:41]} Rd8 {[%emt 0:00:22]} 15. Bc3 {[%emt 0:23:55]} a6 {[%emt 0:06:58]} 16. a4 {[%emt 0:03:18]} Bd7 {[%emt 0:09:11]} 17. Na3 {[%emt 0:04:04]} Rac8 {[%emt 0:02:10]} 18. b5 {[%emt 0:11:02]} axb5 {[%emt 0:10:04]} 19. axb5 {[%emt 0:00:51]} Nce7 {[%emt 0:01:14]} 20. Bb4 {[%emt 0:01:35]} Be8 {[%emt 0:06:07]} 21. Rac1 {[%emt 0:03:09]} Nf5 {[%emt 0:01:45]} 22. Bf1 {[%emt 0:02:46]} Nf4 {[%emt 0:04:46]} 23. g4 {[%emt 0:10:13]} Nd5 {[%emt 0:02:47]} 24. Bc5 {[%emt 0:08:46]} Nh6 {[%emt 0:02:49]} 25. h3 {[%emt 0:01:23]} Ba5 {[%emt 0:00:26]} 26. Red1 {[%emt 0:00:51]} Rxc5 {[%emt 0:06:41]} 27. Rxc5 {[%emt 0:00:02]} Bb4 {[%emt 0:00:01]} 28. Rcxd5 {[%emt 0:00:37]} Rxd5 {[%emt 0:00:20]} 29. Rxd5 {[%emt 0:00:18]} exd5 {[%emt 0:00:01]} 30. Nc2 {[%emt 0:00:03]} Bc5 {[%emt 0:00:08]} 31. Ncd4 {[%emt 0:00:42]} f6 {[%emt 0:02:12]} 32. Nb3 {[%emt 0:04:02]} Bb6 {[%emt 0:00:20]} 33. exf6 {[%emt 0:00:29]} gxf6 {[%emt 0:00:01]} 34. Nfd4 {[%emt 0:00:02]} Bg6 {[%emt 0:07:19]} 35. Bg2 {[%emt 0:06:08]} Be4 {[%emt 0:10:46]} 36. Bxe4 {[%emt 0:00:22]} dxe4 {[%emt 0:00:01]} 37. Kf1 {[%emt 0:00:06]} Nf7 {[%emt 0:00:08]} 38. Nf5 {[%emt 0:00:13]} Kf8 {[%emt 0:01:28]} 39. Nd2 {[%emt 0:00:42]} Ng5 {[%emt 0:02:51]} 40. h4 {[%emt 0:01:19]} Nf3 {[%emt 0:00:03]} 41. Nxf3 {[%emt 0:03:54]} exf3 {[%emt 0:00:02]} 42. h5 {[%emt 0:00:13]} Bc5 {[%emt 0:00:17]} 43. Nh4 {[%emt 0:00:59]} Ke8 {[%emt 0:01:38]} 44. Nxf3 {[%emt 0:00:19]} Kd7 {[%emt 0:00:14]} 45. Nd2 {[%emt 0:09:12]} Ke6 {[%emt 0:00:31]} 46. Ne4 {[%emt 0:01:51]} Be7 {[%emt 0:03:59]} 47. Ke2 {[%emt 0:00:56]} f5 {[%emt 0:00:14]} 48. gxf5+ {[%emt 0:00:22]} Kxf5 {[%emt 0:00:01]} 49. Kf3 {[%emt 0:04:51]} Ke5 {[%emt 0:21:04]} 1/2-1/2

[Event "44th Open Sitges 2018"]
[Site "Sitges"]
[Date "2018.07.23"]
[Round "3"]
[White "Macias Dalmau, David"]
[Black "Jimenez Ortiz, Gonzalo"]
[Result "1/2-1/2"]
[ECO "D10"]
[WhiteElo "1759"]
[BlackElo "1949"]
[Annotator "NA"]
[PlyCount "39"]
[EventDate "2018.07.22"]
[EventType "swiss"]
[EventCountry "ESP"]
[SourceTitle "playchess.com"]
[Source "ChessBase"]
[SourceQuality "1"]
[TimeControl "40/5400+30:1800+30"]

1. d4 {[%emt 0:03:41]} d5 {[%emt 0:00:43]} 2. c4 {[%emt 0:00:15]} c6 {[%emt 0:00:28]} 3. cxd5 {[%emt 0:01:47]} cxd5 {[%emt 0:00:15]} 4. Bf4 {[%emt 0:02:12]} Nc6 {[%emt 0:02:20]} 5. Nc3 {[%emt 0:00:49]} a6 {[%emt 0:02:33]} 6. e3 {[%emt 0:00:27]} Nf6 {[%emt 0:01:58]} 7. Bd3 {[%emt 0:01:11]} Bg4 {[%emt 0:06:12]} 8. Nge2 {[%emt 0:01:55]} e6 {[%emt 0:03:23]} 9. O-O {[%emt 0:01:58]} Bd6 {[%emt 0:02:28]} 10. f3 {[%emt 0:01:27]} Bh5 {[%emt 0:03:26]} 11. Rc1 {[%emt 0:03:58]} Bg6 {[%emt 0:04:40]} 12. Bxd6 {[%emt 0:10:39]} Qxd6 {[%emt 0:02:38]} 13. Nf4 {[%emt 0:17:35]} O-O {[%emt 0:06:06]} 14. Nxg6 {[%emt 0:03:28]} hxg6 {[%emt 0:00:34]} 15. f4 {[%emt 0:01:01]} Rfc8 {[%emt 0:12:59]} 16. Rf2 {[%emt 0:18:08]} Rc7 {[%emt 0:02:04]} 17. Na4 {[%emt 0:05:33]} Nd7 {[%emt 0:06:46]} 18. Rfc2 {[%emt 0:04:41]} Rac8 {[%emt 0:04:27]} 19. a3 {[%emt 0:03:16]} Na5 {[%emt 0:18:25]} 20. b4 {[%emt 0:11:45]} 1/2-1/2

[Event "44th Open Sitges 2018"]
[Site "Sitges"]
[Date "2018.07.26"]
[Round "5"]
[White "Pulvett Marin, Daniel Eduardo"]
[Black "Renteria, Jorge"]
[Result "1-0"]
[ECO "E91"]
[WhiteElo "2458"]
[BlackElo "2272"]
[Annotator "ChessBase"]
[PlyCount "65"]
[EventDate "2018.07.22"]
[EventType "swiss"]
[EventCountry "ESP"]
[SourceTitle "playchess.com"]
[Source "ChessBase"]
[SourceQuality "1"]
[TimeControl "40/5400+30:1800+30"]

1. d4 {[%emt 0:08:53]} Nf6 {[%emt 0:00:25]} 2. Nf3 {[%emt 0:00:12]} d6 {[%emt 0:00:06]} 3. c4 {[%emt 0:01:03]} g6 {[%emt 0:00:09]} 4. Nc3 {[%emt 0:00:07]} Bg7 {[%emt 0:00:09]} 5. e4 {[%emt 0:01:08]} Bg4 {[%emt 0:03:26]} 6. Be2 {[%emt 0:02:01]} O-O {[%emt 0:00:27]} 7. Ng1 {[%emt 0:00:29]} Bxe2 {[%emt 0:00:11]} 8. Ngxe2 {[%emt 0:00:05]} Nfd7 {[%emt 0:00:21]} 9. Be3 {[%emt 0:00:57]} c5 {[%emt 0:01:11]} 10. d5 {[%emt 0:02:17]} a6 {[%emt 0:04:12]} 11. a4 {[%emt 0:07:56]} a5 {[%emt 0:05:42]} 12. f3 {[%emt 0:00:17]} Na6 {[%emt 0:00:23]} 13. O-O {[%emt 0:00:22]} Nb4 {[%emt 0:00:32]} 14. Qd2 {[%emt 0:00:44]} Nf6 {[%emt 0:09:16]} 15. Rad1 {[%emt 0:08:12]} Ra6 {[%emt 0:00:40]} 16. Nb5 {[%emt 0:02:59]} Ne8 {[%emt 0:04:56]} 17. Nec3 {[%emt 0:16:02]} Ra8 {[%emt 0:00:54]} 18. Bh6 {[%emt 0:02:58]} Na6 {[%emt 0:02:18]} 19. Bxg7 {[%emt 0:00:10]} Kxg7 {[%emt 0:00:11]} 20. f4 {[%emt 0:00:13]} Nac7 {[%emt 0:04:46]} 21. Na3 {[%emt 0:05:03]} Nf6 {[%emt 0:08:38]} 22. e5 {[%emt 0:06:53]} Nd7 {[%emt 0:02:38]} 23. Rde1 {[%emt 0:00:15]} dxe5 {[%emt 0:05:22]} 24. fxe5 {[%emt 0:00:04]} f6 {[%emt 0:00:16]} 25. exf6+ {[%emt 0:01:08]} Nxf6 {[%emt 0:01:01]} 26. Qe3 {[%emt 0:08:15]} Rf7 {[%emt 0:00:21]} 27. Qxc5 {[%emt 0:00:30]} Nce8 {[%emt 0:03:00]} 28. Nab5 {[%emt 0:01:55]} Rc8 {[%emt 0:03:34]} 29. Qd4 {[%emt 0:02:57]} Nd6 {[%emt 0:00:24]} 30. Nxd6 {[%emt 0:00:08]} Qxd6 {[%emt 0:02:10]} 31. Ne4 {[%emt 0:03:49]} Qb4 {[%emt 0:02:49]} 32. Ng5 {[%emt 0:01:27]} Rxc4 {[%emt 0:00:18]} 33. Qe5 {[%emt 0:00:03]} 1-0

[Event "44th Open Sitges 2018"]
[Site "Sitges"]
[Date "2018.07.26"]
[Round "5"]
[White "Argandona Riveiro, Inigo"]
[Black "Fernandez Diaz, Cristian"]
[Result "1/2-1/2"]
[ECO "B38"]
[WhiteElo "2423"]
[BlackElo "2242"]
[Annotator "NA"]
[PlyCount "105"]
[EventDate "2018.07.22"]
[EventType "swiss"]
[EventCountry "ESP"]
[SourceTitle "playchess.com"]
[Source "ChessBase"]
[SourceQuality "1"]
[TimeControl "40/5400+30:1800+30"]

1. Nf3 {[%emt 0:00:00]} c5 {[%emt 0:00:29]} 2. c4 {[%emt 0:00:00]} Nf6 {[%emt 0:00:56]} 3. Nc3 {[%emt 0:00:00]} Nc6 {[%emt 0:01:18]} 4. d4 {[%emt 0:00:00]} cxd4 {[%emt 0:02:36]} 5. Nxd4 {[%emt 0:00:00]} g6 {[%emt 0:00:36]} 6. e4 {[%emt 0:01:02]} d6 {[%emt 0:00:57]} 7. Be2 {[%emt 0:00:00]} Bg7 {[%emt 0:00:27]} 8. Be3 {[%emt 0:00:00]} O-O {[%emt 0:00:13]} 9. O-O {[%emt 0:00:00]} Bd7 {[%emt 0:01:18]} 10. Qd2 {[%emt 0:00:00]} Nxd4 {[%emt 0:00:35]} 11. Bxd4 {[%emt 0:00:00]} Bc6 {[%emt 0:00:11]} 12. Bd3 {[%emt 0:05:07]} a5 {[%emt 0:05:01]} 13. Rae1 {[%emt 0:00:00]} Nd7 {[%emt 0:03:43]} 14. Bxg7 {[%emt 0:00:00]} Kxg7 {[%emt 0:00:05]} 15. Re3 {[%emt 0:00:00]} h6 {[%emt 0:13:05]} 16. Kh1 {[%emt 0:02:55]} a4 {[%emt 0:20:37]} 17. Nd5 {[%emt 0:08:07]} e5 {[%emt 0:00:00]} 18. Rh3 {[%emt 0:07:23]} Rh8 {[%emt 0:10:27]} 19. f4 {[%emt 0:05:43]} Bxd5 {[%emt 0:02:35]} 20. exd5 {[%emt 0:00:10]} exf4 {[%emt 0:11:41]} 21. Qxf4 {[%emt 0:01:55]} Ne5 {[%emt 0:00:51]} 22. Re3 {[%emt 0:16:02]} Qg5 {[%emt 0:04:46]} 23. Qd4 {[%emt 0:03:08]} Rac8 {[%emt 0:01:22]} 24. b3 {[%emt 0:12:58]} axb3 {[%emt 0:02:27]} 25. axb3 {[%emt 0:00:02]} Rhe8 {[%emt 0:05:04]} 26. Ref3 {[%emt 0:17:18]} Kg8 {[%emt 0:02:33]} 27. Rf4 {[%emt 0:02:18]} Ra8 {[%emt 0:01:29]} 28. Bb1 {[%emt 0:00:54]} Rec8 {[%emt 0:02:49]} 29. Qf2 {[%emt 0:03:30]} Qe7 {[%emt 0:00:50]} 30. h3 {[%emt 0:08:00]} Rc5 {[%emt 0:00:54]} 31. Rf6 {[%emt 0:03:19]} Ra1 {[%emt 0:03:08]} 32. Qh4 {[%emt 0:00:31]} Kg7 {[%emt 0:00:41]} 33. Rxf7+ {[%emt 0:02:56]} Qxf7 {[%emt 0:00:23]} 34. Rxf7+ {[%emt 0:00:04]} Kxf7 {[%emt 0:00:13]} 35. Qe4 {[%emt 0:00:29]} b5 {[%emt 0:00:39]} 36. Kh2 {[%emt 0:01:05]} bxc4 {[%emt 0:00:39]} 37. Bc2 {[%emt 0:01:20]} cxb3 {[%emt 0:01:22]} 38. Bxb3 {[%emt 0:00:12]} Rcc1 {[%emt 0:00:20]} 39. Qb4 {[%emt 0:01:10]} Rc5 {[%emt 0:01:11]} 40. Qb8 {[%emt 0:00:00]} Ke7 {[%emt 0:00:00]} 41. Qg8 {[%emt 0:03:58]} Nf7 {[%emt 0:04:35]} 42. Qxg6 {[%emt 0:00:06]} Re1 {[%emt 0:00:10]} 43. Qh7 {[%emt 0:07:01]} Re2 {[%emt 0:09:21]} 44. Bd1 {[%emt 0:00:24]} Re5 {[%emt 0:01:14]} 45. Bc2 {[%emt 0:00:17]} Rg5 {[%emt 0:03:20]} 46. h4 {[%emt 0:03:48]} Rg4 {[%emt 0:08:02]} 47. g3 {[%emt 0:06:02]} Rxd5 {[%emt 0:04:13]} 48. Kh3 {[%emt 0:04:48]} h5 {[%emt 0:01:34]} 49. Bf5 {[%emt 0:00:44]} Rg7 {[%emt 0:00:55]} 50. Qxg7 {[%emt 0:01:02]} Rxf5 {[%emt 0:00:03]} 51. g4 {[%emt 0:01:19]} hxg4+ {[%emt 0:00:09]} 52. Qxg4 {[%emt 0:02:10]} Re5 {[%emt 0:00:24]} 53. Qg7 {[%emt 0:00:30]} 1/2-1/2

[Event "44th Open Sitges 2018"]
[Site "Sitges"]
[Date "2018.07.25"]
[Round "5"]
[White "Neelash, Saha"]
[Black "Alarcon Casellas, Rolando"]
[Result "1/2-1/2"]
[ECO "B38"]
[WhiteElo "2319"]
[BlackElo "2389"]
[Annotator "NA"]
[PlyCount "36"]
[EventDate "2018.07.22"]
[EventType "swiss"]
[EventCountry "ESP"]
[SourceTitle "playchess.com"]
[Source "ChessBase"]
[SourceQuality "1"]
[TimeControl "40/5400+30:1800+30"]

1. e4 {[%emt 0:00:14]} c5 {[%emt 0:00:03]} 2. Nf3 {[%emt 0:00:06]} g6 {[%emt 0:00:03]} 3. d4 {[%emt 0:00:05]} cxd4 {[%emt 0:00:07]} 4. Nxd4 {[%emt 0:00:03]} Bg7 {[%emt 0:00:05]} 5. c4 {[%emt 0:00:14]} Nc6 {[%emt 0:00:04]} 6. Be3 {[%emt 0:00:04]} Nf6 {[%emt 0:00:03]} 7. Nc3 {[%emt 0:00:06]} O-O {[%emt 0:00:04]} 8. Be2 {[%emt 0:00:05]} b6 {[%emt 0:00:06]} 9. O-O {[%emt 0:00:14]} Bb7 {[%emt 0:00:01]} 10. f3 {[%emt 0:01:08]} Qb8 {[%emt 0:00:13]} 11. Qd2 {[%emt 0:02:48]} Rd8 {[%emt 0:00:02]} 12. Rfd1 {[%emt 0:01:52]} e6 {[%emt 0:00:19]} 13. Nxc6 {[%emt 0:05:02]} Bxc6 {[%emt 0:02:39]} 14. Bf4 {[%emt 0:00:07]} Qb7 {[%emt 0:01:47]} 15. Bg5 {[%emt 0:15:17]} Qb8 {[%emt 0:00:11]} 16. Bf4 {[%emt 0:01:53]} Qb7 {[%emt 0:08:46]} 17. Bg5 {[%emt 0:01:30]} Qb8 {[%emt 0:00:02]} 18. Bf4 {[%emt 0:02:59]} Qb7 {[%emt 0:00:04]} 1/2-1/2